Cogmind - Beta 15 @@@ ROGUE MODE // 2025.08.12 @ 15:16:55 Player: Rockstar Result: Destroyed by 1E-6QL(R) with Subdweller Machine Gun Performance ------------- Evolutions (0) 0 Regions Visited (2) 400 Robots Destroyed (16) 80 Value Destroyed (497) 497 Prototype IDs (0) 0 Alien Tech Used (0) 0 Bonus (0) 0 TOTAL SCORE: 977 Bonus ------- None Cogmind --------- Core Integrity 0/250 Matter 285/300 Energy 15/200 System Corruption 0% Temperature Cool (0) Movement Rolling (110) Location -10/Subcaves Parts ------- > --- POWER (1) -------- Subdweller Power Source > --- PROPULSION (2) --- Subdweller Monowheel > --- UTILITY (2) ------ Improved Heat Sink Small Storage Unit > --- WEAPON (2) ------- Subdweller Laser > --- INVENTORY (8) ---- Subdweller Power Source Subdweller Monowheel Subdweller Monowheel Improved Heat Sink Mining Laser Peak State ------------ > --- POWER ------------ Light Nuclear Core > --- PROPULSION ------- Aluminum Leg Aluminum Leg > --- UTILITY ---------- Improved Heat Sink Small Storage Unit > --- WEAPON ----------- Subdweller Laser Subdweller Laser > --- INVENTORY -------- Subdweller Power Source Light Nuclear Core Aluminum Leg Aluminum Leg Subdweller Monowheel Subdweller Monowheel Improved Heat Sink Mining Laser [Rating: 14] Favorites ----------- Power Light Nuclear Core Engine Ion Engine Power Core Light Nuclear Core Propulsion Aluminum Leg Treads Light Treads Leg Aluminum Leg Wheel Subdweller Monowheel Utility Small Storage Unit Device Improved Heat Sink Storage Small Storage Unit Weapon Subdweller Laser Energy Gun Subdweller Laser Energy Cannon Beam Cannon Ballistic Gun Assault Rifle Special Weapon Mining Laser Build | -11 -10 -10 ------- Run | Yrd Mat Sub Slots Evolved . | . . . Power . | . . . Propulsion . | . . . Utility . | . . . Weapon . | . . . Parts Attached 20 | 6 8 6 Power 5 | 1 2 2 Engine 4 | 1 1 2 Core 1 | . 1 . Reactor . | . . . Propulsion 5 | 2 2 1 Treads 2 | 2 . . Leg 2 | . 2 . Wheel 1 | . . 1 Hover . | . . . Flight . | . . . Utility 3 | 1 2 . Device 2 | . 2 . Storage 1 | 1 . . Processor . | . . . Hackware . | . . . Protection . | . . . Artifact . | . . . Weapon 7 | 2 2 3 Energy Gun 3 | 1 . 2 Energy Cannon 2 | . 2 . Ballistic Gun 1 | 1 . . Ballistic Cannon . | . . . Launcher . | . . . Special Weapon 1 | . . 1 Impact Weapon . | . . . Slashing Weapon . | . . . Piercing Weapon . | . . . Special Melee Weapon . | . . . Unidentified Prototypes . | . . . Parts Lost 8 | . 2 6 Power 3 | . 1 2 Propulsion 3 | . 1 2 Utility . | . . . Weapon 2 | . . 2 Highest Loss Streak 3 | . 2 3 To Critical Strikes . | . . . Average Backups 6 | 1 6 7 Power 1 | . 1 2 Propulsion 2 | . 2 3 Utility . | . . 1 Weapon 1 | . 1 1 Tool/Special . | . . . Unused Backups 12 | . 2 10 Power 4 | . 1 3 Propulsion 6 | . . 6 Utility 1 | . . 1 Weapon 1 | . 1 . Tool/Special . | . . . Average Slot Usage (%) 87 | . 87 87 Engine 4 | . 10 . Core 5 | . 3 8 Treads 10 | . 23 . Leg 13 | . 4 21 Device 9 | . 4 14 Storage 14 | . 14 14 Energy Gun 15 | . 13 17 Energy Cannon 6 | . 5 7 Ballistic Gun 4 | . 10 . Special Weapon 1 | . . 3 Peak Build Rating 14 | 6 12 14 Average Rating 9 | 4 7 11 On Entrance 6 | . 6 12 Naked Turns . | . . . Heaviest Build 19 | 14 17 19 Greatest Support 40 | 40 40 20 Greatest Overweight (x) 1 | . . 1 Average Overweight (x) . | . . . Largest Inventory Capacity 8 | 8 8 8 Average Capacity 7 | 7 8 8 Most Carried 8 | 4 8 8 Average Carried 6 | 1 6 7 Final Capacity 8 | 8 8 8 Final Carried 8 | 4 8 5 Class Distribution -------------------- 81% | Mutant 18% | Scavenger-Mutant Dominant Class ---------------- Mutant | -10/Materials Mutant | -10/Subcaves Resources | -11 -10 -10 ----------- Run | Yrd Mat Sub Matter Collected 459 | 260 129 70 Remotely . | . . . Salvage Created 678 | . 415 263 Parts 34 | . 19 15 Haulers Intercepted . | . . . Recyclers Shooed . | . . . Parts Field Recycled . | . . . Retrieved Matter . | . . . Parts Self-Destructed 3 | . . 3 Prevented . | . . . Kills | -11 -10 -10 ------- Run | Yrd Mat Sub Combat Hostiles Destroyed 14 | . 8 6 Guns 10 | . 6 4 Cannons 4 | . 2 2 Classes Destroyed 5 | . 4 1 Worker 1 | . 1 . Recycler 1 | . 1 . Swarmer 2 | . 2 . Grunt 6 | . 6 . Subdweller 6 | . . 6 Best Kill Streak 5 | . 5 2 Combat Bots Only 3 | . 3 2 Max Kills in Single Turn 1 | . 1 1 Gunslinging . | . . . Exploded . | . . . Melee . | . . . Uniques/NPCs Destroyed . | . . . Combat | -11 -10 -10 -------- Run | Yrd Mat Sub Hostile Shots Fired 118 | . 73 45 Missed 32 | . 20 12 Hits 86 | . 53 33 Projectile 86 | . 53 33 Critical Strikes 3 | . 3 . Damage Taken 1395 | . 708 687 Core 273 | . 125 148 Absorbed by Shields . | . . . Core Remaining (%) 100 | 100 . . Volleys Fired 57 | . 28 29 Largest 2 | . 2 2 Hottest 120 | . 110 120 Shots Fired 105 | . 56 49 Gun 70 | . 46 24 Cannon 29 | . 10 19 Launcher . | . . . Special 6 | . . 6 Kinetic 18 | . 18 . Thermal 87 | . 38 49 Explosive . | . . . Electromagnetic . | . . . Robot Hit Streak 13 | . 5 13 Robot Miss Streak 2 | . 2 1 Penetration Max . | . . . Secondary Targets 2 | . 1 1 Max Gunslinging Chain 1 | . 1 1 Shots Hit Robots 74 | . 35 39 Core Hits 30 | . 18 12 Critical Kills 1 | . . 1 Critical Parts Destroyed . | . . . Critical Strikes 4 | . 2 2 Burn 2 | . 2 . Destroy 2 | . . 2 Melee Attacks . | . . . Impact . | . . . Slashing . | . . . Piercing . | . . . Sneak Attacks . | . . . Combat Hostiles . | . . . Follow-up Attacks . | . . . Damage Inflicted 1235 | . 521 714 Guns 793 | . 398 395 Cannons 442 | . 123 319 Explosions . | . . . Melee . | . . . Ramming . | . . . Kinetic 135 | . 135 . Thermal 1100 | . 386 714 Explosive . | . . . Electromagnetic . | . . . Impact . | . . . Slashing . | . . . Piercing . | . . . Highest Corruption . | . . . Average Corruption . | . . . Corruption Purged . | . . . Corruption Blocked . | . . . Overload Shots . | . . . Overflow Damage . | . . . Projectiles . | . . . Explosions . | . . . Melee . | . . . Knockbacks . | . . . Impact . | . . . Kinetic . | . . . Secondary . | . . . Self-Inflicted Damage . | . . . Shots . | . . . Rammed . | . . . Targets Rammed . | . . . Kicked . | . . . Crushed . | . . . Highest Temperature 144 | . 144 . Average Temperature 47 | . 47 . Received Heat Transfer 546 | . 438 108 Siege Activations . | . . . Martial Activations . | . . . Shielding Activations . | . . . Robots Disrupted . | . . . Combat Hostiles . | . . . Robots Corrupted . | . . . Combat Hostiles . | . . . Parts Fried . | . . . Impact Corruptions . | . . . Robots Melted . | . . . Combat Hostiles . | . . . Parts Melted 4 | . 3 1 Heat Transferred 2325 | . 1184 1141 Parts Sabotaged . | . . . Parts Stolen . | . . . Parts Stripped . | . . . Power Chain Reactions . | . . . Alert | -11 -10 -10 ------- Run | Yrd Mat Sub Maximum Alert Level . | . . . Low Security (%) 100 | 100 100 . Level 1 . | . . . Level 2 . | . . . Level 3 . | . . . Level 4 . | . . . Level 5 . | . . . High Security . | . . . Max Security . | . . . Peak Influence 171 | . 171 . Initial . | . . . Average 65 | . 83 . Influence Increases 266 | . 266 . Destroy 0b10 Robot/C 160 | . 160 . Destroy 0b10 Robot/NC 10 | . 10 . Destroy Leader 50 | . 50 . Destroy Structure 1 | . 1 . Lose Combat Pursuer 45 | . 45 . Influence Decreases 266 | . 120 146 Entered New Map 71 | . . 71 Time Decay 170 | . 100 70 Lost Part 25 | . 20 5 Squads Dispatched 2 | . 2 . Investigation 1 | . 1 . Extermination . | . . . Reinforcement 1 | . 1 . Assault . | . . . Garrison . | . . . Intercept . | . . . Searches Triggered . | . . . Construction Impeded . | . . . Haulers Reinforced . | . . . Active Scanning Responses . | . . . Cargo Convoy Interrupts . | . . . Stealth | -11 -10 -10 --------- Run | Yrd Mat Sub Distress Signals 3 | . 3 . Communications Jammed . | . . . Distress Signals . | . . . Times Spotted 23 | . 16 7 Peak Tracking Total 8 | . 8 3 Tactical Retreats 2 | . 2 . Traps | -11 -10 -10 ------- Run | Yrd Mat Sub Traps Triggered 1 | . 1 . Indirectly . | . . . Trap Hack Attempts . | . . . Triggered . | . . . Disarmed . | . . . Reprogrammed . | . . . Reused . | . . . Traps Extracted . | . . . Installed . | . . . Triggered . | . . . Machines | -11 -10 -10 ---------- Run | Yrd Mat Sub Machines Disabled . | . . . Max in Single Turn . | . . . Machines Repaired . | . . . Machines Dismantled . | . . . Machines Sabotaged . | . . . Overloaded Fab Kills . | . . . Hacking | -11 -10 -10 --------- Run | Yrd Mat Sub Machines Accessed . | . . . Terminals . | . . . Fabricators . | . . . Repair Stations . | . . . Recycling Units . | . . . Scanalyzers . | . . . Garrison Access . | . . . Total Hacks . | . . . Successful . | . . . Failed . | . . . Catastrophic . | . . . Database Lockouts . | . . . Manual . | . . . Terminals . | . . . Fabricators . | . . . Repair Stations . | . . . Recycling Units . | . . . Scanalyzers . | . . . Garrison Access . | . . . Terminal Hacks . | . . . Fabricator Hacks . | . . . Repair Station Hacks . | . . . Recycling Unit Hacks . | . . . Scanalyzer . | . . . Garrison Access Hacks . | . . . Unauthorized Hacks . | . . . Terminals . | . . . Fabricators . | . . . Repair Stations . | . . . Recycling Units . | . . . Scanalyzers . | . . . Garrison Access . | . . . Data Cores Recovered . | . . . Used . | . . . Hacking Detections . | . . . Full Trace Events . | . . . Feedback Events . | . . . Feedback Blocked . | . . . Robot Schematics Acquired . | . . . Robots Built . | . . . Authchips . | . . . Time . | . . . Total Robot Build Rating . | . . . Part Schematics Acquired . | . . . Parts Built . | . . . Authchips . | . . . Time . | . . . Total Part Build Rating . | . . . Parts Repaired . | . . . Time . | . . . Parts Recycled . | . . . Recycled Matter . | . . . Retrieved Matter . | . . . Retrieved Components . | . . . Parts Scanalyzed . | . . . Part Schematics Acquired . | . . . Parts Damaged . | . . . Bothacking | -11 -10 -10 ------------ Run | Yrd Mat Sub Used RIF Installer . | . . . Robots Hacked . | . . . Non-combat . | . . . Combat . | . . . Robot Hacks Applied . | . . . Relay Couplers Released . | . . . Fabnet Peak Effective % . | . . . Robots Rewired . | . . . Allies Hacked . | . . . Hacks Repelled . | . . . Allies | -11 -10 -10 -------- Run | Yrd Mat Sub Total Allies . | . . . Largest Group . | . . . Highest-Rated Group . | . . . Highest-Rated Ally . | . . . Total Orders . | . . . Ally Attacks . | . . . Total Damage . | . . . Kills . | . . . Allies Corrupted . | . . . Allies Melted . | . . . Intel | -11 -10 -10 ------- Run | Yrd Mat Sub Active Infowar (turns) . | . . . Robot Analysis Total . | . . . Derelict Logs Recovered 2 | . . 2 Drone Launches . | . . . Drone Recoveries . | . . . Exploration | -11 -10 -10 ------------- Run | Yrd Mat Sub Turns Passed 680 | 77 270 333 Spaces Moved 282 | 43 98 141 Core 3 | 3 . . Treads 113 | 40 73 . Legs 166 | . 25 141 Wheels . | . . . Hover . | . . . Flight . | . . . Fastest Speed 50 | 50 120 120 Average Speed 149 | 152 149 147 Slowest Speed 190 | 160 160 190 Overloaded Moves . | . . . Propulsion Burnouts . | . . . Robots Hopped . | . . . Potential Cave-ins . | . . . Cave-ins Triggered . | . . . Exploration Rate (%) 10 | 3 20 7 Regions Visited 2 Branch Regions 1 Pre-discovered Areas 1 | . . 1 Known Exits Taken . | . . . Unknown Exits Taken 2 | 1 1 . Scrap Searched . | . . . Spaces Dug . | . . . Terrain Destroyed . | . . . Melee . | . . . Projectile . | . . . AOE . | . . . Terrain Rammed . | . . . Walls Destroyed . | . . . Machines Disabled . | . . . Actions | -11 -10 -10 --------- Run | Yrd Mat Sub Total 424 | 52 167 205 Wait 27 | . 16 11 Move 280 | 42 97 141 Hop . | . . . Pick Up 21 | 4 10 7 Fast Attach 10 | 6 3 1 Attach 7 | . 4 3 Detach 1 | . 1 . Swap 7 | . 1 6 Drop 14 | . 7 7 Fire 57 | . 28 29 Melee . | . . . Ram . | . . . Kick . | . . . Crush . | . . . Escape Stasis . | . . . Rewire . | . . . Trap . | . . . Miscellaneous . | . . . Route ------- -11/Scrapyard -10/Materials -10/Subcaves (discovered 1 exit: Rec) History --------- Turn | Location | Event 15 | -11/Scrapyard | Discovered new exit (range 16) 78 | -11/Scrapyard | Entered Materials 342 | -10/Materials | Discovered new exit (range 7) 347 | -10/Materials | Build established: Mutant 348 | -10/Materials | Entered Subcaves 349 | -10/Subcaves | Ambushed by Subdwellers from Twisted Machinery 351 | -10/Subcaves | Core integrity fell below 50% 435 | -10/Subcaves | Learned location of Zion (-7) 517 | -10/Subcaves | Identified exit to Recycling 628 | -10/Subcaves | A Subdweller sparked back to life 653 | -10/Subcaves | Core integrity fell below 20% 681 | -10/Subcaves | Destroyed by 1E-6QL(R) with Subdweller Machine Gun Last Messages --------------- 00506_ Acquired 10 matter. 00517_ Acquired derelict log, extracted data. Loading 1 Subcaves exit... 00522_ OG-0LA(R) suffers critical hit (Destroy). 00530_ OG-0LA(R) affixes Scrap Shield Fragment to Scrap Shield. 00531_ Lgt. Nuclear Core destroyed. 00533_ Aluminum Leg destroyed. 00535_ OG-0LA(R) destroyed. 00538_ Dropped Lgt. Nuclear Core. 00544_ Acquired Sub. Power Source. 00591_ Subatomizers dissect the Lgt. Nuclear Core. 00628_ 1E-6QL(R) creaks and sparks as it begins to move. 00629_ 55-B2R(u) builds Twisted Machinery. 00660_ E1-7XU(R) destroyed. 00663_ Sub. Power Source destroyed. 00663_ Acquired 25 matter. 00665_ Aluminum Leg destroyed. 00672_ B9-7GA(R) destroyed. 00672_ Switching to secondary target: 1E-6QL(R). 00677_ Sub. Laser destroyed. Map ----- +----------------------------------------------------+ | ?????# "###????????????###??????????????? | | ?????# """"" """ ##?????????### ####???????????? | | ?????###"#"#""" #????????## #???????????? | | ???????###### "#????????# % #???????????? | | ????????????# ########### = #???????????? | | ????????????# ##"## # ## *= #>??????????? | | ????????????# """" #%## #???????????? | | ???????????## " " ### # #%### ##???????????? | | ???????????# #"""###########&&####????????????? | | ???????????## ### #?#### ##?????????????? | | ?????????# #### ##????????????? | | ????????# # ## ####?????????? | | ???????# ## # ## ###???????? | | ??????# # # ### #???????? | | ??????# # # ###### #####???????? | | ?????# " ##????####???????????? | | ?????## ## # ##????????????????????? | | ??????## ?## " % % #?????????????????????? | | ???????####??## " # %""#?????????????????????? | | ??????????????#"" # ""##?????????????????????? | | ??????????????# ""& ##&""##??????????????????????? | | ?????????????# #####%["#??????????????????????? | | ?????????????# ##??#&&##??????????????????????? | | ?????????????## "#" #& ##??????????????????????? | | ??????????????# "#"" %&#??????????????????????? | | ??????????????# """ """R @#??????????????????????? | | ??????????????#?" # "##"###??????????????????????? | | ????????????????? ?## ????????????????????????? | | ???????????????? # ???? ????????????????????????? | | ??????????????? ? ?????"????????????????????????? | | ??????????????#??????????????????????????????????? | | ?????????????????????????????????????????????????? | | ?????????????????????????????????????????????????? | | ?????????????????????????????????????????????????? | | ?????????????????????????????????????????????????? | | ?????????????????????????????????????????????????? | | ?????????????????????????????????????????????????? | | ?????????????????????????????????????????????????? | | ?????????????????????????????????????????????????? | | ?????????????????????????????????????????????????? | | ?????????????????????????????????????????????????? | | ?????????????????????????????????????????????????? | | ?????????????????????????????????????????????????? | | ?????????????????????????????????????????????????? | | ?????????????????????????????????????????????????? | | ?????????????????????????????????????????????????? | | ?????????????????????????????????????????????????? | | ?????????????????????????????????????????????????? | | ?????????????????????????????????????????????????? | | ?????????????????????????????????????????????????? | +----------------------------------------------------+ Best States ------------- Heat Dissipation 39 Energy Generation 15 Energy Capacity 250 Matter Stores 300 Matter Capacity 300 Sight Range 16 Terrain Scan Density 10 Evasion (%) 55 Recoil Reduction 2 Item Schematics ----------------- None Robot Schematics ------------------ None Fabricated ------------ Nothing Repaired ---------- Nothing Alien Tech Used ----------------- None Achievements -------------- None Challenges ------------ None Game ------ Seed SmartLinearBlade Manual? 0 Play Time 00:17:13 Cumulative 147.1 hours Start 2025.08.12 @ 13:08:38 End 2025.08.12 @ 15:16:55 Sessions 1 Manual Loads 0 Difficulty Rogue Special Mode None Game No. 137 Rogue 134 Adventurer 1 Explorer 2 Win Type - Total 1 Types 1/0/0/0/0/0/0/0/0/0 Lore% 48 Gallery% 60 Achievement% 46 Wizard Run 0 Options --------- Layout 0 ASCII 0 Keyboard 0 Movement Mouse Keybinds 0 Fullscreen 2 Font 24/Smallcaps Map View 76x50 Zoom Use 0% Tactical HUD 1 Map Filters NONE Filters NONE Steam 1 RUN: d24eaf56-e159-48d1-ada9-603ccfcdf9e4